bitfinex/quotes_ETHUSD_20220218
["timestamp","ask_amount","ask_price","bid_price","bid_amount"]
[1645142670692,0.1736,2879.6,2878.9,0.86515262]
[1645142671091,0.89538054,2880.1,2878.9,0.86515262]
[1645142671092,0.00291934,2879.2,2878.9,0.86515262]
[1645142671896,0.4736,2880.0,2878.1,0.1736]
[1645142671897,1.14660212,2879.6,2878.1,0.1736]
[1645142672092,0.52914085,2879.5,2878.1,0.1736]
[1645142672292,0.00291936,2879.2,2878.1,0.1736]
[1645142672497,0.00291936,2879.2,2878.4,1.73749]
[1645142673140,2.0261,2879.3,2878.7,0.99734252]
[1645142673342,2.0261,2879.3,2878.7,1.29734252]
[1645142673540,0.00278923,2878.9,2878.7,1.29734252]
[1645142674343,2.0261,2879.3,2878.7,1.29734252]
[1645142674744,0.00278923,2878.9,2878.7,1.29734252]
[1645142675647,2.0261,2879.3,2878.7,1.29734252]
[1645142675850,0.00175885,2878.9,2878.7,1.29734252]
[1645142676048,0.00175885,2878.9,2878.7,3.03466252]
[1645142676448,0.00175885,2878.9,2878.7,2.73466252]
[1645142676649,0.00175885,2878.9,2878.7,0.99734252]
[1645142676890,0.65550755,2879.2,2878.1,0.1736]
[1645142677094,0.3,2879.2,2878.5,0.86882]
[1645142677290,2.0261,2879.3,2878.5,0.86882]
[1645142677291,0.00280018,2878.9,2878.5,0.86882]
[1645142677497,0.00280018,2878.9,2878.3,2.0376]
[1645142677696,0.00280018,2878.9,2877.7,0.04999999]
[1645142677993,1.12789841,2878.6,2877.8,1.16230235]
[1645142678393,1.42789841,2878.6,2877.8,1.16230235]
[1645142678593,1.42789841,2878.6,2877.7,0.04999999]
[1645142678796,1.42789841,2878.6,2877.7,0.91906999]
[1645142679195,0.3,2878.6,2877.7,0.91906999]
[1645142679394,0.3,2878.6,2877.7,0.04999999]
[1645142679595,0.00280042,2878.3,2877.7,0.04999999]
[1645142679999,0.87198042,2878.3,2877.7,0.04999999]
[1645142680201,1.17198042,2878.3,2877.7,0.04999999]
[1645142680396,1.16918,2878.3,2877.7,0.04999999]
[1645142680663,0.0027998,2878.1,2877.7,0.04999999]
[1645142681263,0.0027998,2878.1,2877.7,0.86908]
[1645142681666,0.3,2878.3,2877.7,0.86908]
[1645142681862,0.1736,2878.8,2877.7,0.86908]
[1645142681863,0.00267914,2878.0,2877.7,0.86908]
[1645142682464,0.00267914,2878.0,2877.7,1.16908]
[1645142682663,0.00267914,2878.0,2877.7,2.16908]
[1645142682865,1.46429907,2879.0,2877.7,1.16908]
[1645142682866,0.35568958,2878.9,2877.7,1.16908]
[1645142683065,0.00267916,2878.0,2877.7,1.16908]
[1645142683263,0.00267916,2878.0,2877.7,2.16908]
[1645142683869,0.00267916,2878.0,2877.8,0.416]
[1645142684063,2.0261,2879.3,2878.1,0.8688]
[1645142684295,2.0261,2879.3,2878.6,0.47396216]
[1645142684296,0.35582652,2879.2,2878.6,0.47396216]
[1645142684488,0.35582652,2879.2,2878.1,0.3]
[1645142684688,0.35582652,2879.2,2878.0,2.0376]
[1645142684689,1.04252,2879.1,2878.0,2.0376]
[1645142684889,0.35582652,2879.0,2878.0,2.0376]
[1645142685089,0.35582652,2878.9,2878.0,2.0376]
[1645142685288,0.3,2878.9,2878.0,2.0376]
[1645142685494,0.0028071,2878.6,2878.0,2.89780757]
[1645142686092,0.0028071,2878.6,2878.0,2.0376]
[1645142686291,0.0028071,2878.6,2877.7,1.73802]
[1645142686492,1.38196313,2878.8,2877.7,1.73802]
[1645142686493,0.52199262,2878.7,2877.7,1.73802]
[1645142686694,0.00280717,2878.4,2877.7,1.73802]
[1645142687094,0.00280717,2878.4,2877.6,1.73815]
[1645142687095,1.08306251,2878.3,2877.6,1.73815]
[1645142687295,1.38306251,2878.3,2876.9,1.73828]
[1645142687496,2.2031,2878.2,2877.3,0.86926]
[1645142688150,0.00279942,2877.8,2877.3,0.86926]
[1645142688348,0.00279942,2877.8,2877.2,1.73833]
[1645142688349,0.00279942,2877.8,2877.2,2.65935123]
[1645142688545,0.00279942,2877.8,2877.5,0.86926]
[1645142688950,0.3,2878.1,2877.5,0.86926]
[1645142689150,0.00279933,2877.8,2877.5,0.86926]
[1645142690152,0.3,2878.1,2877.5,0.86926]
[1645142690352,0.00279942,2877.8,2877.5,0.86926]
[1645142690953,0.00279942,2877.8,2877.5,1.16926]
[1645142691157,0.00279942,2877.8,2877.5,2.03834]
[1645142691353,0.00279942,2877.8,2877.5,24.08727]
[1645142691652,0.00279942,2877.8,2877.7,1.7376]
[1645142691653,0.00279998,2877.8,2877.7,1.7376]
[1645142691892,0.00279998,2877.8,2877.7,23.21742297]
[1645142692095,0.00279998,2877.8,2877.7,3.03742297]
[1645142692293,0.00279998,2877.8,2877.7,4.03739297]
[1645142692495,0.34895692,2878.7,2878.2,1.09258062]
[1645142692695,2.95476,2878.8,2878.3,0.3]
[1645142692896,2.0858,2878.8,2878.3,0.3]
[1645142693096,2.3858,2878.8,2878.3,0.3]
[1645142693302,0.3489551,2878.7,2878.3,0.3]
[1645142693597,0.6489551,2878.7,2878.3,0.3]
[1645142693796,0.3,2878.7,2878.3,0.3]
[1645142693995,0.00258562,2878.6,2878.3,0.3]
[1645142694395,0.30258562,2878.6,2878.3,0.3]
[1645142694598,0.00258562,2878.6,2878.3,0.3]
[1645142694798,0.34929299,2878.7,2878.3,0.3]
[1645142694998,0.64929299,2878.7,2878.3,0.3]
[1645142695199,0.1736,2879.0,2878.4,0.86891]
[1645142695402,2.1506,2879.8,2878.4,22.46491]
[1645142695645,2.1506,2879.8,2878.6,22.78531]
[1645142695646,0.34913567,2879.7,2878.6,22.78531]
[1645142695852,0.34913567,2879.7,2878.7,1.416]
[1645142696051,2.0349,2880.3,2879.3,0.98068969]
[1645142696248,0.97818054,2880.4,2879.3,0.98068969]
[1645142696249,0.3328,2880.4,2880.2,1.34649224]
[1645142697648,0.3328,2880.4,2880.2,2.21471224]
[1645142699292,0.64538054,2880.8,2880.2,2.21471224]
[1645142699495,2.0349,2880.9,2880.3,0.86816]
[1645142699699,1.1797,2881.3,2880.4,1.16814]
[1645142699700,0.64538054,2881.1,2880.4,1.16814]
[1645142699897,2.5551,2881.4,2880.4,1.16814]
[1645142699898,0.64538054,2881.2,2880.4,2.16814]
[1645142700099,0.00299518,2880.6,2880.4,2.58414]
[1645142700495,0.00299518,2880.6,2880.5,2.60398]
[1645142700900,0.59837572,2881.2,2880.7,0.868]
[1645142701205,2.3817,2881.4,2880.8,1.168]
[1645142701498,0.86237339,2881.7,2880.8,1.168]
[1645142701702,0.86237339,2881.5,2880.8,0.3]
[1645142701900,0.86237339,2881.5,2880.8,1.30676943]
[1645142702102,0.86237339,2881.5,2880.8,0.3]
[1645142702401,0.86237339,2881.5,2880.7,0.86808]
[1645142702402,0.86237339,2881.4,2880.7,0.86808]
[1645142702600,0.86237339,2881.4,2880.8,0.3]
[1645142702803,1.16237339,2881.4,2880.6,1.73614]
[1645142703050,1.16237339,2881.4,2880.5,2.0362]
[1645142703250,0.3,2881.4,2880.5,2.0362]
[1645142703447,3.7,2881.4,2880.8,0.86812]
[1645142703647,3.4,2881.4,2880.8,0.86812]
[1645142703853,4.56237339,2881.4,2880.8,0.86812]
[1645142704252,4.56237339,2881.4,2880.7,1.95384129]
[1645142704253,3.7,2881.4,2880.7,1.24350107]
[1645142704849,0.00299492,2881.2,2880.8,1.16812]
[1645142705048,0.00299492,2881.2,2880.9,0.86798]
[1645142705451,0.00299492,2881.2,2880.7,1.24350107]
[1645142705652,3.7,2881.4,2880.7,1.24350107]
[1645142705854,3.7,2881.4,2880.8,0.3]
[1645142706052,0.00299494,2881.2,2880.8,0.3]
[1645142706655,0.00299494,2881.2,2880.9,0.86802]
[1645142706889,0.00299494,2881.2,2880.8,0.3]
[1645142706890,3.7,2881.4,2880.8,0.3]
[1645142707091,0.00299497,2881.1,2881.0,0.00547215]
[1645142708200,3.7,2881.4,2881.0,0.00547215]
[1645142708399,0.00299494,2881.2,2881.0,0.00547215]
[1645142709399,3.7,2881.4,2881.0,0.00547215]
[1645142709597,0.00299492,2881.2,2881.0,0.00547215]
[1645142710661,3.7,2881.4,2881.0,0.00547215]
[1645142710963,0.00299492,2881.2,2881.0,0.00547215]
[1645142711672,4.34804055,2881.4,2881.0,0.00547215]
[1645142711867,0.00299492,2881.2,2881.0,0.00547215]
[1645142712468,0.00299492,2881.2,2880.9,0.00553993]
[1645142712966,4.34804055,2881.4,2880.9,0.00553993]
[1645142713171,0.00299494,2881.2,2880.9,0.00553993]
[1645142714172,4.34804055,2881.4,2880.9,0.00553993]
[1645142714390,0.00299494,2881.2,2880.9,0.00553993]
[1645142714796,0.00299494,2881.2,2880.9,2.04161993]
[1645142714998,0.00299494,2881.2,2880.9,1.74161993]
[1645142715397,4.34804055,2881.4,2880.9,1.74161993]
[1645142715601,0.00299494,2881.2,2880.9,1.74161993]
[1645142716605,0.32566502,2881.3,2881.0,1.73588]
[1645142716802,0.32566502,2881.3,2881.2,1.06931269]
[1645142717401,0.32566502,2881.3,2881.2,1.10021736]
[1645142718150,0.32566502,2881.3,2881.2,1.40021736]
[1645142718347,0.78507767,2881.9,2881.3,3.7]
[1645142718552,7.767e-05,2881.9,2881.4,26.97917655]
[1645142718756,7.767e-05,2881.9,2881.5,20.48]
[1645142718953,7.767e-05,2881.9,2881.6,20.3534]
[1645142719155,1.29633066,2883.4,2881.6,20.3534]
[1645142719156,0.64804055,2883.0,2882.1,20.18]
[1645142719358,0.64804055,2883.3,2882.3,20.18]
[1645142719553,0.64804055,2883.4,2882.5,20.18]
[1645142719755,0.64804055,2883.4,2882.4,0.5894]
[1645142719756,0.64804055,2883.6,2882.8,20.18]
[1645142719955,1.36237339,2883.9,2882.9,1.55442155]
[1645142719956,0.64804055,2883.8,2882.9,1.55442155]
[1645142720154,0.64804055,2883.8,2883.2,0.86716]
[1645142720354,1.14804055,2883.9,2883.3,0.416]
[1645142720556,0.64804055,2884.1,2883.4,0.86714]
[1645142720754,1.2368,2884.4,2883.4,0.86714]
[1645142720755,0.64804055,2884.3,2883.5,0.86698]
[1645142721154,1.2368,2884.4,2884.0,1.02465117]
[1645142721155,1.88484055,2884.4,2884.0,1.02465117]
[1645142721452,0.64804055,2884.5,2883.5,1.0]
[1645142721664,1.80011758,2884.6,2883.2,0.5893]
[1645142721665,0.00175717,2884.0,2883.2,0.5893]
[1645142721902,0.00175717,2884.0,2883.1,0.25]
[1645142721903,0.64979772,2884.0,2883.5,1.73447]
[1645142722096,0.64979772,2884.0,2883.1,0.3]
[1645142722304,0.64979772,2884.0,2883.0,1.3]
[1645142722502,1.0655318,2883.7,2882.9,0.86744]
[1645142722704,1.0655318,2883.7,2882.7,0.8676]
[1645142722901,0.1734,2883.6,2882.7,0.8676]
[1645142723301,0.4734,2883.6,2882.7,0.8676]
[1645142723499,0.4734,2883.6,2882.8,0.86748]
[1645142723500,0.1734,2883.6,2882.8,0.86748]
[1645142723702,0.3,2883.6,2882.8,0.86748]
[1645142723902,0.1734,2884.0,2882.9,0.86745]
[1645142724100,0.00299635,2883.3,2883.2,0.90273454]
[1645142724300,0.00299635,2883.3,2882.9,1.4928814]
[1645142724508,0.00299635,2883.3,2882.9,3.2677714]
[1645142724702,0.00491758,2884.4,2883.0,4.2894]
[1645142724905,0.00491758,2884.4,2883.4,0.86706]
[1645142725101,0.00491758,2884.4,2883.7,0.86706]
[1645142725302,0.00491758,2884.4,2883.9,0.90444296]
[1645142725756,0.00491758,2884.4,2883.8,0.86142599]
[1645142726361,0.00491758,2884.4,2883.9,4.33527]
[1645142726558,0.00491758,2884.7,2884.0,0.416]
[1645142726760,3.1494,2885.2,2884.1,20.18]
[1645142726761,0.00491758,2885.0,2884.1,20.18]
[1645142726958,0.00491758,2885.1,2884.1,0.416]
[1645142727160,0.00491758,2885.1,2884.2,1.3]
[1645142727355,0.00491758,2885.1,2884.7,1.11753439]
[1645142727556,0.00491758,2885.1,2884.7,1.98447439]
[1645142727755,0.00491758,2885.1,2884.7,2.28447439]
[1645142727956,0.00491758,2885.1,2884.7,1.16694]
[1645142729160,0.00299559,2885.0,2884.7,1.16694]
[1645142729596,0.00491758,2885.7,2884.8,0.416]
[1645142729800,0.01197933,2885.8,2884.8,0.416]
[1645142729801,0.01197933,2885.8,2885.2,20.18]
[1645142729993,1.8209,2886.3,2885.2,20.18]
[1645142729994,0.00491758,2886.2,2885.6,0.94879085]
[1645142730396,0.00491758,2886.2,2885.7,0.416]
[1645142730599,0.00491758,2886.2,2885.7,20.596]
[1645142730802,4.56323066,2887.4,2885.7,20.596]
[1645142730803,0.00491758,2886.6,2885.9,20.18]
[1645142731000,0.00491758,2886.7,2886.1,20.18]
[1645142731199,0.00491758,2887.1,2886.5,21.18636119]
[1645142731406,0.00491758,2887.1,2886.1,0.3]
[1645142731407,2.15197508,2886.3,2886.1,0.3]
[1645142731600,2.15197508,2886.3,2885.8,0.25]
[1645142731601,2.15689266,2886.3,2885.8,0.25]
[1645142731798,2.15689266,2886.3,2885.6,0.86658]
[1645142732197,2.15689266,2886.3,2885.6,0.3]
[1645142732600,0.18933936,2885.5,2885.2,0.92712257]
[1645142732799,0.18933936,2885.5,2885.2,1.22712257]
[1645142732800,0.00491758,2885.4,2885.2,1.22712257]
[1645142733245,0.00491758,2885.4,2885.2,0.3]
[1645142733446,0.00491758,2885.4,2885.3,1.73318]
[1645142733747,0.00791522,2885.4,2885.3,2.03318]
[1645142734147,0.00791522,2885.4,2884.9,0.1731]
[1645142734346,0.00791522,2885.4,2885.2,0.98536071]
[1645142734748,0.00491758,2885.4,2885.2,0.98536071]
[1645142734957,0.00175044,2885.3,2885.2,0.98536071]
[1645142735349,0.00175044,2885.3,2885.2,1.28536071]
[1645142735951,0.00491758,2885.4,2885.2,1.28536071]
[1645142736154,0.00666802,2885.4,2885.2,1.28536071]
[1645142736995,3.40491758,2885.4,2885.2,1.28536071]
[1645142737295,3.40791753,2885.4,2885.2,1.28536071]
[1645142737501,3.40791753,2885.4,2885.3,0.00537691]
[1645142738299,3.40491758,2885.4,2885.3,0.00537691]
[1645142740546,0.01199793,2885.9,2885.4,1.73304]
[1645142740751,2.15197508,2886.3,2885.6,20.18]
[1645142740947,2.15197508,2886.3,2886.2,0.94689347]
[1645142741447,2.15197508,2886.3,2886.2,1.24689347]
[1645142741848,1.8317,2887.2,2886.3,3.8]
[1645142742058,1.8317,2887.2,2886.5,20.18]
[1645142742249,0.01200562,2886.8,2886.5,0.416]
[1645142742447,0.01200562,2886.8,2886.6,1.0]
[1645142742659,0.01200562,2886.8,2886.7,0.416]
[1645142742847,0.01200562,2886.8,2886.7,0.91736168]
[1645142743049,1.8317,2887.2,2886.7,1.21736168]
[1645142743349,0.00175514,2886.9,2886.8,0.86619]
[1645142744148,0.00175514,2886.9,2886.8,22.46219]
[1645142744400,1.49181194,2888.9,2886.8,61.36433028]
[1645142744602,0.86237339,2889.2,2886.8,61.36433028]
[1645142744603,1.95e-05,2887.4,2887.3,20.17824486]
[1645142744798,1.8189,2889.1,2887.3,20.17824486]
[1645142744799,0.10487925,2888.7,2887.4,3.8]
[1645142744996,1.8189,2889.1,2887.8,0.86565]
[1645142745203,0.08340049,2889.0,2887.9,20.596]
[1645142745398,0.15650049,2889.3,2888.2,20.18]
[1645142745605,2.3564,2889.6,2888.5,0.86551]
[1645142745606,0.08586658,2889.2,2888.5,0.86551]
[1645142745805,0.08586658,2889.5,2889.1,1.17346032]
[1645142746002,0.08414279,2889.4,2888.8,20.18]
[1645142746204,2.69844055,2890.0,2888.6,0.416]
[1645142746205,0.08414279,2889.3,2888.6,0.416]
[1645142746401,0.08414279,2889.2,2888.7,1.73107]
[1645142746603,0.04149491,2889.9,2888.7,1.73107]
[1645142746806,0.07617328,2889.8,2888.8,21.04547]
[1645142747005,0.00301225,2889.1,2889.0,1.76250776]
[1645142747205,0.00301225,2889.1,2889.0,2.17850776]
[1645142747409,0.00301225,2889.1,2889.0,1.31302776]
[1645142747610,0.00301225,2889.1,2888.9,0.68195096]
[1645142747814,0.00301225,2889.1,2889.0,2.14684]
[1645142748046,0.04035806,2889.7,2889.1,0.003]
[1645142748247,0.0030122,2889.2,2889.1,20.183]
[1645142748448,0.0030122,2889.2,2889.1,0.416]
[1645142748646,0.0030122,2889.2,2889.0,1.73084]
[1645142748847,0.0030122,2889.2,2888.6,2.1472]
[1645142749145,0.04035806,2889.7,2888.6,2.1472]
[1645142749345,0.00174162,2889.2,2888.6,23.1928]
[1645142749545,0.00174162,2889.2,2888.8,1.11804884]
[1645142749945,3.40174162,2889.2,2888.8,1.11804884]
[1645142750347,3.4,2889.2,2888.8,20.18]
[1645142750546,0.00174162,2889.1,2888.8,20.18]
[1645142750748,0.00174162,2889.1,2888.8,21.34544]
[1645142750951,0.00174162,2889.1,2888.9,1.0]
[1645142751150,0.00174162,2889.1,2888.9,21.3529]
[1645142751448,3.4,2889.2,2888.9,21.3529]
[1645142751648,3.4,2889.2,2888.9,21.18]
[1645142751896,3.4,2889.2,2888.9,20.18]
[1645142751897,0.00289789,2889.1,2888.9,20.18]
[1645142752294,0.00289789,2889.1,2888.8,0.3]
[1645142752295,0.00289789,2889.1,2889.0,1.04648213]
[1645142752795,3.4,2889.2,2889.0,21.52648213]
[1645142752999,3.4,2889.2,2889.0,23.25703213]
[1645142753000,3.40289787,2889.2,2889.0,23.25703213]
[1645142753596,3.40289787,2889.2,2889.1,22.04526]
[1645142753794,3.40289787,2889.2,2889.1,22.34526]
[1645142753995,3.4,2889.2,2889.1,22.34526]
[1645142754600,9.782e-05,2889.3,2889.1,49.32443655]
[1645142754798,9.782e-05,2889.3,2889.2,29.4686662]
[1645142755005,0.25,2891.2,2889.6,20.18]
[1645142755198,0.25,2891.2,2889.8,20.18]
[1645142755397,0.25,2891.2,2890.0,20.18]
[1645142755398,2.042,2891.2,2890.0,20.18]
[1645142755659,2.042,2891.2,2890.7,0.97132524]
[1645142755854,0.1729,2891.7,2890.7,21.45132524]
[1645142756055,0.00495878,2891.1,2890.7,18.7196337]
[1645142756254,0.00495878,2891.6,2890.7,18.7196337]
[1645142756453,0.00495878,2891.7,2890.9,18.3036337]
[1645142756653,0.00495878,2891.7,2891.0,0.416]
[1645142756853,0.00495878,2891.7,2891.5,21.31223202]
[1645142757054,0.1530769,2891.8,2891.4,0.416]
[1645142757255,0.1530769,2891.8,2890.8,1.25466106]
[1645142757256,0.1530769,2891.8,2891.0,0.3]
[1645142757456,0.1530769,2891.8,2890.2,0.1729]
[1645142757661,0.1729,2891.7,2890.4,0.3]
[1645142757856,0.1530769,2891.8,2889.9,26.97917655]
[1645142757857,0.00495878,2891.6,2890.2,0.416]
[1645142758055,0.32101812,2891.8,2890.2,0.716]
[1645142758056,0.8752706,2891.4,2890.2,0.716]
[1645142758258,0.25,2891.2,2890.2,0.3]
[1645142758457,0.17785878,2891.1,2889.7,0.2973521]
[1645142758656,0.17785878,2891.1,2889.7,0.0473521]
[1645142758856,1.92965878,2891.1,2889.7,0.0473521]
[1645142759155,1.09591812,2890.7,2889.7,0.0473521]
[1645142759395,0.00495878,2890.6,2889.7,0.0473521]
[1645142759597,0.00495878,2891.0,2889.7,0.9124821]
[1645142760096,0.00495878,2891.0,2889.7,0.3473521]
[1645142760301,0.00174006,2890.5,2889.8,20.18]
[1645142760706,0.00174006,2890.5,2889.7,0.0473521]
[1645142760909,0.00174006,2890.5,2889.8,0.86512]
[1645142761104,0.00495878,2891.0,2889.8,21.04512]
[1645142761306,0.00495878,2891.0,2889.8,1.16512]
[1645142761504,0.00302799,2890.2,2889.8,1.16512]
[1645142761707,0.00302799,2890.2,2889.8,1.33802]
[1645142761906,0.00302799,2890.2,2889.8,0.4729]
[1645142762109,0.00302799,2890.2,2889.5,0.00302872]
[1645142762307,0.00302799,2890.2,2888.9,25.76776]
[1645142762308,0.00495878,2890.2,2888.9,25.76776]
[1645142762707,1.08418862,2890.2,2888.9,25.76776]
[1645142762908,1.08418862,2890.2,2888.9,22.77536]
[1645142763142,1.08418862,2890.2,2888.9,23.64063]
[1645142763547,1.08418862,2890.2,2888.9,22.94826]
[1645142763742,0.00172834,2889.8,2888.9,22.94826]
[1645142763943,0.00172834,2889.8,2888.9,22.77536]
[1645142764146,0.00172834,2889.8,2889.2,20.18]
[1645142764343,0.00172834,2889.8,2889.1,1.16534]
[1645142764743,0.00495878,2890.2,2889.1,1.16534]
[1645142764945,0.00495878,2890.2,2889.1,20.48]
[1645142765144,0.00302569,2889.8,2889.3,0.00302625]
[1645142765548,2.569e-05,2889.8,2889.4,26.97917655]
[1645142765753,2.569e-05,2889.8,2889.5,33.67836684]
[1645142765951,2.569e-05,2889.8,2889.5,33.56807655]
[1645142766157,0.00495878,2891.0,2889.5,29.93268761]
[1645142766350,0.00495878,2891.0,2889.6,20.26176106]
[1645142766550,0.00495878,2891.0,2890.3,0.86497]
[1645142766796,0.00495878,2891.0,2890.3,1.16497]
[1645142767001,0.00495878,2891.0,2890.4,20.18]
[1645142767303,1.3216,2891.7,2890.4,20.18]
[1645142767304,0.14811812,2891.8,2890.6,20.18]
[1645142767504,0.14811812,2891.8,2890.8,20.18]
[1645142767700,0.14811812,2891.8,2891.1,20.18]
[1645142767899,0.14811812,2891.8,2891.3,18.77012952]
[1645142768099,0.14811812,2891.8,2891.5,18.77012952]
[1645142768304,1.812e-05,2891.8,2891.7,18.77012952]
[1645142768502,3.06129339,2893.5,2891.7,18.77012952]
[1645142768503,1.7309,2893.1,2891.8,22.67012952]
[1645142768710,0.00691268,2892.1,2892.0,19.63459952]
[1645142768901,1.7309,2893.1,2892.2,18.77012952]
[1645142769131,1.7309,2893.1,2892.4,18.77012952]
[1645142769302,0.25,2893.6,2892.6,18.77012952]
[1645142769502,0.25,2893.6,2892.8,18.77012952]
[1645142769700,0.25,2893.6,2892.8,15.62473417]
[1645142769900,1.8531,2893.7,2893.0,15.62473417]
[1645142770302,0.0144654,2893.8,2893.1,15.62473417]
[1645142770551,0.2644654,2893.8,2893.1,15.32473417]
[1645142770952,0.2644654,2893.8,2893.0,0.416]
[1645142771155,0.2644654,2893.8,2892.3,0.416]
[1645142771554,1.1288354,2893.8,2892.3,0.716]
[1645142771753,0.2644654,2893.8,2892.4,0.86433]
[1645142771954,0.2644654,2893.8,2892.5,32.56797655]
[1645142771955,0.0144654,2893.8,2892.5,32.56797655]
[1645142772153,0.0144654,2893.8,2892.8,20.18]
[1645142772355,0.0144654,2893.8,2893.0,20.18]
[1645142772553,0.0144654,2893.8,2893.2,20.18]
[1645142772755,0.0144654,2893.8,2893.4,20.18]
[1645142772952,0.0144654,2893.8,2893.3,0.416]
[1645142772953,0.0144654,2893.8,2893.6,20.18]
[1645142773554,0.00302544,2893.7,2893.6,20.18]
[1645142774400,0.0144654,2893.8,2893.6,20.18]
[1645142774604,0.01749082,2893.8,2893.6,20.18]
[1645142775002,0.01749082,2893.8,2893.1,20.18]
[1645142775210,0.01749082,2893.8,2892.8,0.1728]
[1645142775211,0.26749082,2893.8,2892.8,0.1728]
[1645142775410,0.26749082,2893.8,2892.1,0.1728]
[1645142775606,0.26749082,2893.8,2892.2,0.416]
[1645142775607,0.1728,2893.7,2892.2,0.416]
[1645142775806,1.1288554,2893.8,2892.2,0.416]
[1645142776009,0.00302557,2893.4,2892.3,20.18]
[1645142776206,0.86749557,2893.4,2892.3,20.18]
[1645142776408,1.26683932,2893.2,2892.3,20.18]
[1645142776611,1.26683932,2893.2,2891.9,2.14477]
[1645142777007,0.00302582,2892.9,2892.0,20.18]
[1645142777209,0.00302582,2892.9,2892.0,20.48]
[1645142777405,0.00302582,2892.9,2892.1,21.18]
[1645142777607,0.00302582,2892.9,2892.1,21.48]
[1645142778051,1.01683932,2893.2,2892.1,21.48]
[1645142778255,0.00302593,2892.6,2892.1,20.48]
[1645142778458,0.00302593,2892.6,2892.0,0.1728]
[1645142778459,0.00302593,2892.6,2891.6,0.1728]
[1645142778664,0.25302593,2892.6,2891.1,0.3873]
[1645142778954,0.25302593,2892.6,2891.1,0.2145]
[1645142779159,1.11473,2892.6,2891.1,0.2145]
[1645142779355,0.8677107,2892.2,2891.2,20.18]
[1645142779652,0.8677107,2892.2,2891.1,0.2145]
[1645142779653,0.00302597,2892.2,2891.1,0.2145]
[1645142780055,0.25,2892.0,2891.1,0.2145]
[1645142780460,0.86474,2892.6,2891.2,20.18]
[1645142780658,0.25,2892.7,2891.4,20.18]
[1645142780863,0.00302579,2892.2,2891.4,20.18]
[1645142781059,0.00302579,2892.2,2891.5,20.18]
[1645142781458,0.25,2892.1,2891.5,20.18]
[1645142781662,0.25,2892.1,2891.4,20.18]
[1645142781899,0.25,2892.1,2891.5,20.18]
[1645142782102,0.00302597,2892.2,2891.5,20.18]
[1645142782103,0.00302597,2892.2,2891.5,21.3446]
[1645142782302,0.00302597,2892.2,2891.5,20.48]
[1645142782501,0.00302597,2892.2,2891.7,20.18]
[1645142782706,0.00302597,2892.2,2891.8,20.7688]
[1645142782900,1.1533,2893.3,2891.8,20.7688]
[1645142782901,0.00493399,2892.8,2891.8,20.7688]
[1645142783102,0.00493399,2892.8,2892.0,20.18]
[1645142783303,0.00493399,2892.8,2892.2,20.17697397]
[1645142783803,0.00493399,2892.8,2892.2,20.47697397]
[1645142783804,0.25,2892.8,2892.2,20.47697397]
[1645142784009,0.00493399,2892.7,2892.2,20.47697397]
[1645142784209,0.00493399,2893.2,2892.2,20.47697397]
[1645142784402,0.00493399,2893.2,2892.3,0.86436]
[1645142784603,0.00493399,2893.2,2892.4,20.17697397]
[1645142785003,0.00493399,2893.2,2892.4,0.3]
[1645142785205,0.00493399,2893.2,2892.4,20.18]
[1645142785647,0.00292369,2892.9,2892.4,20.18]
[1645142786245,0.00292369,2892.9,2892.3,0.3]
[1645142786450,0.86456,2893.0,2892.1,20.18]
[1645142786650,0.86456,2893.0,2891.2,3.59331]
[1645142786651,2.59406,2892.8,2891.2,1.1728]
[1645142786856,2.59406,2892.8,2891.1,0.2145]
[1645142786857,1.08239684,2892.3,2891.6,0.00292499]
[1645142787050,0.00493399,2892.2,2891.6,0.00292499]
[1645142787350,1.81553399,2892.2,2891.6,0.00292499]
[1645142787750,1.81553399,2892.2,2891.5,20.18]
[1645142788051,1.81553399,2892.2,2891.6,0.00292454]
[1645142788251,1.81553399,2892.2,2891.6,0.86751454]
[1645142788451,0.00493399,2892.2,2891.6,0.30292454]
[1645142788651,0.00292377,2892.3,2891.6,20.18292454]
[1645142788851,0.25493399,2892.3,2891.6,20.18]
[1645142789050,0.25,2892.3,2891.1,0.2145]
[1645142789300,0.00493399,2892.2,2891.6,0.00282642]
[1645142789503,0.86974399,2892.2,2891.6,0.00282642]
[1645142789702,0.86488,2892.1,2891.6,0.00282642]
[1645142789899,0.00493399,2892.0,2891.6,0.00282642]
[1645142790097,1.095904,2892.0,2891.1,20.3945]
[1645142790297,1.095904,2892.0,2891.6,0.00282639]
[1645142790703,1.960754,2892.0,2891.6,0.00282639]
[1645142790903,1.095904,2892.0,2891.6,0.00282639]
[1645142791307,1.095904,2892.0,2890.5,1.416]
[1645142791308,1.395904,2892.0,2890.4,1.1729]
[1645142791513,1.395904,2892.0,2890.1,0.1729]
[1645142791514,8.92550979,2891.9,2890.1,0.1729]
[1645142791706,8.92550979,2891.9,2889.6,29.90047655]
[1645142791707,0.86518,2891.5,2889.6,30.07337655]
[1645142791909,1.73069,2891.1,2889.6,0.1729]
[1645142792109,5.76158703,2891.0,2889.5,0.8650003]
[1645142792507,5.58868703,2891.0,2889.5,0.8650003]
[1645142792706,1.73061,2890.9,2889.6,20.18]
[1645142792906,0.86532,2890.7,2890.1,0.00283353]
[1645142793151,0.00493399,2890.6,2890.1,0.00283353]
[1645142793852,0.00493399,2890.6,2889.6,20.18]
[1645142794053,1.11538,2890.4,2890.2,0.00283349]
[1645142794253,1.11538,2890.4,2890.2,3.349e-05]
[1645142794254,8.63928571,2890.3,2890.2,3.349e-05]
[1645142794454,3.81218571,2890.3,2890.2,3.349e-05]
[1645142794850,4.90038568,2890.3,2888.1,0.1729]
[1645142795053,0.86568,2889.3,2888.1,0.1729]
[1645142795254,0.99941592,2888.9,2888.2,20.18]
[1645142795454,3.99387716,2889.2,2888.2,20.18]
[1645142795656,3.97327456,2889.2,2888.2,20.18]
[1645142795853,3.97327456,2889.2,2887.8,0.1729]
[1645142796256,3.97327456,2889.2,2887.9,20.18]
[1645142796456,0.86583,2888.8,2887.9,20.18]
[1645142796656,0.86583,2888.8,2888.6,0.0011191]
[1645142796657,3.56707631,2888.7,2888.6,0.0011191]